fUSD/lending_fUSD_20250314
["ID","MTS","AMOUNT","RATE_DAILY","PERIOD"]
[356118468,1741910602106,-150.0,0.0002,30]
[356118511,1741911032328,-235.21,0.00021796,2]
[356118512,1741911032337,-975.76,0.00021796,2]
[356118513,1741911032348,-150.0,0.00022,2]
[356118514,1741911032358,-158.76,0.00023679,2]
[356118515,1741911032367,-240.13,0.00023733,2]
[356118516,1741911032377,-150.01912927,0.00023751,2]
[356118517,1741911032386,-150.01912927,0.00023778,2]
[356118518,1741911032395,-158.76,0.00023787,2]
[356118519,1741911032405,-936.82480221,0.00023851,2]
[356118520,1741911032430,-410.58519779,0.00023851,2]
[356118521,1741911032440,-250.0,0.00023878,2]
[356118522,1741911032450,-158.76,0.00023894,2]
[356118523,1741911032459,-203.88382571,0.000239,3]
[356118524,1741911032469,-1000.0,0.00023935,2]
[356118525,1741911032479,-977.84,0.00023947,2]
[356118526,1741911032489,-150.99,0.00023947,2]
[356118527,1741911032498,-150.0,0.00023976,2]
[356118528,1741911032508,-366.35,0.00023978,30]
[356118529,1741911032518,-158.76,0.00024002,2]
[356118530,1741911032527,-158.76,0.0002411,2]
[356118531,1741911032537,-159.32,0.00024176,2]
[356118532,1741911032548,-158.76,0.00024217,2]
[356118533,1741911032557,-159.32,0.0002424,2]
[356118534,1741911032567,-159.32,0.00024303,2]
[356118535,1741911032576,-158.76,0.00024325,2]
[356118536,1741911032587,-159.32,0.00024367,2]
[356118537,1741911032597,-159.32,0.00024431,2]
[356118538,1741911032883,-158.76,0.00024433,2]
[356118539,1741911032895,-159.32,0.00024494,2]
[356118540,1741911032904,-158.76,0.0002454,2]
[356118541,1741911032915,-159.32,0.00024558,2]
[356118542,1741911032924,-182.69,0.00024563,2]
[356118543,1741911032934,-159.32,0.00024621,2]
[356118544,1741911032943,-158.76,0.00024648,2]
[356118545,1741911032953,-1000.0,0.00024658,2]
[356118546,1741911032963,-159.32,0.00024685,2]
[356118547,1741911032973,-159.32,0.00024749,2]
[356118548,1741911032983,-158.76,0.00024756,2]
[356118549,1741911032993,-159.32,0.00024812,2]
[356118550,1741911033003,-158.76,0.00024863,2]
[356118551,1741911033012,-159.32,0.00024876,2]
[356118552,1741911033022,-150.0,0.00024876,2]
[356118553,1741911033033,-159.32,0.0002494,2]
[356118554,1741911033044,-3054.92115271,0.00024989,2]
[356118555,1741911033058,-147.03441244,0.00024989,2]
[356118556,1741911033069,-1970.454,0.00024998,8]
[356118557,1741911033079,-181.777,0.00024998,8]
[356118558,1741911033091,-134.70721588,0.00024998,3]
[356118559,1741911033392,-365.29278412,0.00024998,3]
[356118560,1741911033403,-500.0,0.00024998,3]
[356118561,1741911033413,-500.0,0.00024998,3]
[356118562,1741911033423,-500.0,0.00024998,3]
[356118563,1741911033433,-500.0,0.00024998,3]
[356118564,1741911033443,-500.0,0.00024998,3]
[356118565,1741911033453,-500.0,0.00024998,3]
[356118566,1741911033463,-500.0,0.00024998,3]
[356118567,1741911033473,-500.0,0.00024998,3]
[356118568,1741911033482,-500.0,0.00024998,3]
[356118569,1741911033492,-2025.97,0.00024998,3]
[356118570,1741911033502,-500.0,0.00024998,3]
[356118571,1741911033513,-500.0,0.00024998,3]
[356118572,1741911033523,-500.36203524,0.00024998,3]
[356118573,1741911033533,-500.0,0.00024998,3]
[356118574,1741911033550,-500.0,0.00024998,3]
[356118575,1741911033560,-500.0,0.00024998,3]
[356118576,1741911033570,-702.18,0.00024998,3]
[356118577,1741911033581,-634.02,0.00024998,3]
[356118578,1741911033591,-578.18,0.00024998,3]
[356118579,1741911033601,-500.0,0.00024998,3]
[356118580,1741911033611,-590.17,0.00024998,3]
[356118581,1741911033621,-500.0,0.00024998,3]
[356118582,1741911033631,-500.0,0.00024998,3]
[356118583,1741911033641,-715.31,0.00024998,3]
[356118584,1741911033652,-500.0,0.00024998,3]
[356118585,1741911033663,-245.70826874,0.00024998,3]
[356118586,1741911033674,-821.32,0.00024998,3]
[356118587,1741911033684,-500.0,0.00024998,3]
[356118589,1741911033695,-652.82,0.00024998,3]
[356118591,1741911033705,-500.0,0.00024998,3]
[356118593,1741911033715,-500.0,0.00024998,3]
[356118594,1741911033725,-500.0,0.00024998,3]
[356118597,1741911033735,-500.0,0.00024998,3]
[356118598,1741911033744,-500.0,0.00024998,3]
[356118600,1741911033754,-500.0,0.00024998,3]
[356118602,1741911033764,-609.56,0.00024998,3]
[356118604,1741911033775,-500.0,0.00024998,3]
[356118606,1741911033789,-504.48314717,0.00024998,3]
[356118608,1741911033802,-500.0,0.00024998,3]
[356118610,1741911033812,-795.24,0.00024998,3]
[356118612,1741911033823,-578.63,0.00024998,3]
[356118614,1741911033834,-500.0,0.00024998,3]
[356118616,1741911033844,-696.68,0.00024998,3]
[356118618,1741911033856,-500.0,0.00024998,3]
[356118620,1741911033870,-502.25677757,0.00024998,3]
[356118622,1741911033881,-500.0,0.00024998,3]
[356118624,1741911033892,-500.0,0.00024998,3]
[356118626,1741911033902,-500.0,0.00024998,3]
[356118628,1741911033913,-500.0,0.00024998,3]
[356118631,1741911033924,-500.0,0.00024998,3]
[356118633,1741911033935,-694.53,0.00024998,3]
[356118635,1741911033945,-500.0,0.00024998,3]
[356118637,1741911033956,-500.0,0.00024998,3]
[356118638,1741911033966,-500.0,0.00024998,3]
[356118640,1741911033976,-104.96745231,0.00024998,3]
[356118643,1741911033992,-472.33254769,0.00024998,3]
[356118645,1741911034003,-500.0,0.00024998,3]
[356118647,1741911034013,-500.0,0.00024998,3]
[356118649,1741911034024,-385.26679211,0.00024999,3]
[356118651,1741911034034,-500.0,0.00024999,3]
[356118653,1741911034049,-656.95,0.00024999,3]
[356118655,1741911034059,-1087.09,0.00024999,3]
[356118657,1741911034069,-500.0,0.00024999,3]
[356118659,1741911034080,-500.0,0.00024999,3]
[356118661,1741911034091,-500.0,0.00024999,3]
[356118663,1741911034101,-1088.09,0.00024999,3]
[356118665,1741911034111,-500.0,0.00024999,3]
[356118667,1741911034121,-500.0,0.00024999,3]
[356118669,1741911034132,-413.94,0.00024999,3]
[356118671,1741911034142,-504.4,0.00024999,3]
[356118673,1741911034152,-500.0,0.00024999,3]
[356118675,1741911034163,-500.0,0.00024999,3]
[356118677,1741911034173,-842.59847538,0.00024999,3]
[356118680,1741911034194,-145.10152462,0.00024999,3]
[356118682,1741911034211,-525.38724957,0.00024999,3]
[356118684,1741911034223,-546.57275043,0.00024999,3]
[356118686,1741911034233,-1070.09,0.00024999,3]
[356118688,1741911034245,-500.0,0.00024999,3]
[356118690,1741911034255,-506.44,0.00024999,3]
[356118692,1741911034266,-500.0,0.00024999,3]
[356118694,1741911034277,-500.0,0.00024999,3]
[356118696,1741911034287,-1196.05,0.00024999,3]
[356118698,1741911034297,-500.0,0.00024999,3]
[356118700,1741911034308,-1121.73,0.00024999,3]
[356118702,1741911034318,-198.73324702,0.00024999,3]
[356118704,1741911034330,-301.26675298,0.00024999,3]
[356118706,1741911034340,-500.0,0.00024999,3]
[356118708,1741911034350,-79.26676702,0.00024999,3]
[356118710,1741911034362,-298.86,0.00024999,3]
[356118883,1741911038307,-467.67054885,0.00024998,3]
[356118884,1741911038367,-32.32945115,0.00024998,3]
[356118885,1741911038378,-858.2,0.00024998,3]
[356118886,1741911038387,-121.87323298,0.00024999,3]
[356118887,1741911038397,-500.0,0.00024999,3]
[356118888,1741911038406,-500.0,0.00024999,3]
[356118889,1741911038415,-601.26,0.00024999,3]
[356118890,1741911038424,-976.26,0.00024999,3]
[356118891,1741911038433,-500.0,0.00024999,3]
[356118892,1741911038443,-1075.23,0.00024999,3]
[356118893,1741911038453,-500.0,0.00024999,3]
[356118894,1741911038463,-500.0,0.00024999,3]
[356118895,1741911038472,-908.49,0.00024999,3]
[356118896,1741911038481,-500.0,0.00024999,3]
[356118897,1741911038491,-500.0,0.00024999,3]
[356118898,1741911038500,-49.60531587,0.00024999,3]
[356118899,1741911038514,-450.39468413,0.00024999,3]
[356118900,1741911038523,-500.0,0.00024999,3]
[356118901,1741911038533,-500.0,0.00024999,3]
[356118902,1741911038543,-363.60531587,0.00024999,3]
[356118903,1741911038566,-136.39468413,0.00024999,3]
[356118904,1741911038575,-500.0,0.00024999,3]
[356118905,1741911038585,-500.0,0.00024999,3]
[356118906,1741911038595,-191.08890126,0.00024999,3]
[356118907,1741911038607,-308.91109874,0.00024999,3]
[356118908,1741911038617,-616.43,0.00024999,3]
[356118909,1741911038627,-500.0,0.00024999,3]
[356118910,1741911038636,-500.0,0.00024999,3]
[356118911,1741911038646,-1462.54,0.00024999,3]
[356118912,1741911038655,-500.0,0.00024999,3]
[356118913,1741911038665,-500.0,0.00024999,3]
[356118914,1741911038676,-548.58120853,0.00024999,3]
[356118915,1741911038685,-500.0,0.00024999,3]
[356118916,1741911038695,-500.0,0.00024999,3]
[356118917,1741911038705,-500.0,0.00024999,3]
[356118919,1741911038714,-500.0,0.00024999,3]
[356118921,1741911038723,-209.53122037,0.00024999,3]
[356118925,1741911040499,-290.46877963,0.00024999,3]
[356118926,1741911040509,-500.0,0.00024999,3]
[356118927,1741911040519,-500.0,0.00024999,3]
[356118928,1741911040528,-500.0,0.00024999,3]
[356118929,1741911040538,-822.34,0.00024999,3]
[356118930,1741911040547,-1324.77,0.00024999,3]
[356118931,1741911040557,-500.0,0.00024999,3]
[356118932,1741911040566,-500.0,0.00024999,3]
[356118933,1741911040575,-513.04723796,0.00024999,3]
[356118934,1741911040585,-500.0,0.00024999,3]
[356118935,1741911040595,-167.52991117,0.00024999,3]
[356118936,1741911040604,-500.0,0.00024999,3]
[356118937,1741911040613,-500.0,0.00024999,3]
[356118938,1741911040623,-500.0,0.00024999,3]
[356118939,1741911040633,-500.0,0.00024999,3]
[356118940,1741911040643,-645.7456939,0.00024999,3]
[356118941,1741911040653,-500.0,0.00024999,3]
[356118942,1741911040662,-611.39270557,0.00024999,3]
[356118943,1741911040671,-520.88,0.00024999,3]
[356118944,1741911040681,-500.0,0.00024999,3]
[356118945,1741911040690,-500.0,0.00024999,3]
[356118946,1741911040699,-500.0,0.00024999,3]
[356118947,1741911040709,-500.0,0.00024999,3]
[356118948,1741911040719,-500.0,0.00024999,3]
[356118949,1741911040728,-500.0,0.00024999,3]
[356118950,1741911040738,-516.97,0.00024999,3]
[356118951,1741911040748,-649.34,0.00024999,3]
[356118952,1741911040757,-500.0,0.00024999,3]
[356118953,1741911040767,-500.0,0.00024999,3]
[356118954,1741911040777,-727.9,0.00024999,3]
[356118955,1741911040789,-500.0,0.00024999,3]
[356118956,1741911040803,-500.0,0.00024999,3]
[356118957,1741911040812,-500.0,0.00024999,3]
[356118958,1741911040822,-500.0,0.00024999,3]
[356118959,1741911040832,-500.0,0.00024999,3]
[356118960,1741911040842,-500.0,0.00024999,3]
[356118961,1741911040851,-787.91,0.00024999,3]
[356118962,1741911040861,-620.45017043,0.00024999,3]
[356118963,1741911040871,-500.0,0.00024999,3]
[356118964,1741911040880,-1357.61,0.00024999,3]
[356118965,1741911040890,-519.24864941,0.00024999,3]
[356118966,1741911040899,-717.98,0.00024999,3]
[356118967,1741911040909,-500.0,0.00024999,3]
[356118968,1741911040918,-1100.0,0.00025,30]
[356118969,1741911040928,-159.32,0.00025003,2]
[356118970,1741911040937,-500.0,0.00025025,3]
[356118971,1741911040947,-500.0,0.00025025,3]
[356118972,1741911040956,-500.0,0.00025025,3]
[356118973,1741911040967,-211.24679652,0.00025025,3]
[356118974,1741911040977,-500.0,0.00025025,2]
[356118975,1741911040987,-500.0,0.00025025,3]
[356118976,1741911040999,-500.0,0.00025025,3]
[356118977,1741911041008,-500.0,0.00025025,3]
[356118978,1741911041018,-500.0,0.00025025,3]
[356118979,1741911041028,-500.0,0.00025025,3]
[356118980,1741911041038,-500.0,0.00025025,3]
[356118981,1741911041049,-584.88,0.00025025,3]
[356118982,1741911041059,-500.0,0.00025025,3]
[356118983,1741911041070,-500.0,0.00025025,3]
[356118984,1741911041080,-500.15,0.00025025,3]
[356118985,1741911041089,-500.0,0.00025025,3]
[356118986,1741911041099,-500.0,0.00025025,3]
[356118987,1741911041109,-500.0,0.00025025,3]
[356118988,1741911041118,-500.0,0.00025025,3]
[356118989,1741911041128,-197.54921772,0.00025025,3]
[356118990,1741911041140,-302.45078228,0.00025025,3]
[356118991,1741911041150,-500.0,0.00025025,3]
[356118992,1741911041160,-500.0,0.00025025,3]
[356118993,1741911041170,-500.0,0.00025025,3]
[356118994,1741911041179,-500.0,0.00025025,3]
[356118995,1741911041189,-291.7787068,0.00025025,3]
[356118996,1741911041198,-150.12268421,0.00025025,3]
[356118997,1741911041216,-349.87731579,0.00025025,3]
[356118998,1741911041226,-500.0,0.00025025,3]
[356118999,1741911041236,-500.0,0.00025025,3]
[356119000,1741911041246,-1150.12268421,0.00025025,3]
[356119005,1741911043473,-500.0,0.00024998,3]
[356119006,1741911043483,-1142.95731579,0.00025025,3]
[356119007,1741911043492,-813.42,0.00025025,3]
[356119008,1741911043500,-166.27,0.00025025,3]
[356119009,1741911043511,-500.0,0.00025025,3]
[356119010,1741911043521,-500.0,0.00025025,3]
[356119011,1741911043530,-500.0,0.00025025,3]
[356119012,1741911043540,-500.0,0.00025025,3]
[356119013,1741911043553,-539.36967488,0.00025025,3]
[356119014,1741911043563,-75.7325996,0.00025025,3]
[356119015,1741911043574,-424.2674004,0.00025025,3]
[356119016,1741911043584,-500.0,0.00025025,3]
[356119017,1741911043593,-500.0,0.00025025,3]
[356119018,1741911043602,-873.96,0.00025025,3]
[356119019,1741911043612,-500.0,0.00025025,3]
[356119020,1741911043621,-480.9725996,0.00025025,3]
[356119021,1741911043632,-19.0274004,0.00025025,3]
[356119022,1741911043643,-281.19528186,0.00025025,3]
[356119023,1741911043659,-218.80471814,0.00025025,3]
[356119024,1741911043668,-500.0,0.00025025,3]
[356119025,1741911043678,-508.64,0.00025025,3]
[356119026,1741911043687,-500.0,0.00025025,3]
[356119027,1741911043696,-500.0,0.00025025,3]
[356119028,1741911043706,-500.0,0.00025025,3]
[356119029,1741911043715,-500.0,0.00025025,3]
[356119030,1741911043725,-500.0,0.00025025,3]
[356119031,1741911043734,-500.0,0.00025025,3]
[356119032,1741911043744,-500.0,0.00025025,3]
[356119033,1741911043753,-223.13881994,0.00025025,3]
[356119034,1741911043765,-276.86118006,0.00025025,3]
[356119035,1741911043774,-500.0,0.00025025,3]
[356119036,1741911043783,-500.0,0.00025025,3]
[356119037,1741911043798,-500.0,0.00025025,3]
[356119038,1741911043807,-2025.97,0.00025025,3]
[356119039,1741911043817,-500.0,0.00025025,3]
[356119040,1741911043826,-500.0,0.00025025,3]
[356119041,1741911043837,-500.0,0.00025025,3]
[356119042,1741911043846,-500.0,0.00025025,3]
[356119043,1741911043856,-500.0,0.00025025,3]
[356119044,1741911043866,-500.0,0.00025025,3]
[356119045,1741911043878,-500.0,0.00025025,3]
[356119046,1741911043888,-500.0,0.00025025,3]
[356119047,1741911043897,-500.0,0.00025025,3]
[356119048,1741911043907,-230.1959318,0.00025025,3]
[356119050,1741911043916,-500.0,0.00025025,3]
[356119051,1741911043926,-500.0,0.00025025,3]
[356119054,1741911043936,-266.97288764,0.00025025,3]
[356119058,1741911043947,-233.02711236,0.00025025,3]
[356119060,1741911043957,-702.18,0.00025025,3]
[356119063,1741911043967,-500.0,0.00025025,3]
[356119065,1741911043976,-634.02,0.00025025,3]
[356119067,1741911043985,-500.0,0.00025025,3]
[356119068,1741911043996,-500.0,0.00025025,3]
[356119069,1741911044005,-500.0,0.00025025,3]
[356119070,1741911044015,-500.0,0.00025025,3]
[356119071,1741911044024,-574.59,0.00025025,3]
[356119072,1741911044034,-578.18,0.00025025,3]
[356119073,1741911044044,-500.0,0.00025025,3]
[356119074,1741911044053,-500.0,0.00025025,3]
[356119075,1741911044063,-500.0,0.00025025,3]
[356119076,1741911044077,-500.0,0.00025025,3]
[356119077,1741911044093,-590.17,0.00025025,3]
[356119078,1741911044103,-500.0,0.00025025,3]
[356119079,1741911044113,-500.0,0.00025025,3]
[356119080,1741911044123,-17.60254165,0.00025025,3]
[356119081,1741911044688,-443.88181818,0.00025025,3]
[356119082,1741911044700,-38.51564017,0.00025025,3]
[356119083,1741911044709,-270.03359569,0.00025025,3]
[356119084,1741911046415,-229.96640431,0.00025025,3]
[356119085,1741911046426,-531.290979,0.00025025,3]
[356119086,1741911046438,-825.499021,0.00025025,3]
[356119087,1741911046448,-715.31,0.00025025,3]
[356119088,1741911046458,-105.18443027,0.00025025,3]
[356119089,1741911046470,-394.81556973,0.00025025,3]
[356119090,1741911046479,-108.65796298,0.00025025,3]
[356119091,1741911046505,-391.34203702,0.00025025,3]
[356119092,1741911046515,-500.0,0.00025025,3]
[356119093,1741911046524,-500.0,0.00025025,3]
[356119094,1741911046534,-821.32,0.00025025,3]
[356119095,1741911046544,-500.0,0.00025025,3]
[356119096,1741911046553,-500.0,0.00025025,3]
[356119097,1741911046563,-70.65438298,0.00025025,3]
[356119098,1741911046575,-429.34561702,0.00025025,3]
[356119099,1741911046584,-500.0,0.00025025,3]
[356119100,1741911046594,-500.0,0.00025025,3]
[356119101,1741911046603,-500.0,0.00025025,3]
[356119102,1741911046613,-500.0,0.00025025,3]
[356119103,1741911046622,-500.0,0.00025025,3]
[356119104,1741911046631,-500.0,0.00025025,3]
[356119105,1741911046641,-337.76289998,0.00025025,3]
[356119106,1741911046653,-315.05710002,0.00025025,3]
[356119107,1741911046662,-311.94843071,0.00025025,3]
[356119108,1741911046674,-188.05156929,0.00025025,3]
[356119109,1741911046684,-500.0,0.00025025,3]
[356119110,1741911046694,-500.0,0.00025025,3]
[356119111,1741911046704,-472.94843071,0.00025025,3]
[356119189,1741911152514,-153.89,0.00022207,2]
[356119190,1741911170514,-189.2898887,0.00024998,3]
[356119191,1741911180162,-150.0,0.00021,7]
[356119194,1741911291008,-216.94516499,0.00021,7]
[356119195,1741911908429,501.8139923,0.0001,2]
[356119196,1741911908466,23726.59398056,0.0001,2]
[356119197,1741911908502,584986.92126347,0.0001,2]
[356119198,1741911908533,2000000.0,0.0001,2]
[356119199,1741911908564,7393.09747943,0.0001,2]
[356119200,1741911908595,3303.74419364,0.0001,2]
[356119201,1741911908628,5068.54155364,0.0001,2]
[356119202,1741911908662,3358.14151878,0.0001,2]
[356119203,1741911908695,2254.9073082,0.0001,2]
[356119204,1741911908727,5718.24488792,0.0001,2]
[356119205,1741911908758,3424.84768244,0.0001,2]
[356119206,1741911909103,-204.64450131,0.0001,2]
[356119207,1741911911191,-204.64450131,0.0001,2]
[356119280,1741911968360,-289.4675,0.0001,2]
[356119282,1741911993182,-153.74008941,9.999e-05,2]
[356119283,1741911996011,-232.91991059,9.999e-05,2]
[356119285,1741912022075,-150.0,9.998e-05,2]
[356119286,1741912057476,-150.0,9.998e-05,2]
[356119287,1741912057500,-150.0,9.999e-05,2]
[356119288,1741912057525,-185.21,9.999e-05,2]
[356119289,1741912066759,-81.87008941,9.999e-05,2]
[356119290,1741912066784,-177.94109009,9.999e-05,2]
[356119291,1741912066809,-500.0,9.999e-05,2]
[356119292,1741912066833,-212.84562838,9.999e-05,2]
[356119293,1741912066857,-500.0,9.999e-05,2]
[356119294,1741912066882,-500.0,9.999e-05,2]
[356119295,1741912066905,-500.0,9.999e-05,2]
[356119296,1741912066929,-500.0,9.999e-05,2]
[356119297,1741912066955,-2518.42909212,0.0001,2]
[356119304,1741912232383,-263.1351302,9.999e-05,2]
[356119305,1741912232442,-36.8648698,9.999e-05,2]
[356119306,1741912232452,-863.1351302,0.0001,2]
[356119307,1741912232464,-276.0,0.0001,2]
[356119308,1741912232550,-738.28295851,0.0001,2]
[356119309,1741912232562,-714.21207113,0.0001,2]
[356119310,1741912232573,-1059.34757036,0.0001,2]
[356119311,1741912232585,-4043.91203711,0.0001,2]
[356119324,1741912238486,-5559.34199387,0.0001,2]
[356119331,1741912240524,-2281.7544,0.0001,2]
[356119332,1741912240540,-1637.5271975,0.0001,2]
[356119333,1741912240633,-2149.52758628,0.0001,2]
[356119334,1741912240896,-319.61213118,0.0001,2]
[356119336,1741912240909,-562.17499999,0.0001,2]
[356119361,1741912243488,-1428.34763,0.0001,2]
[356119362,1741912243655,-1080.6,0.0001,2]
[356119363,1741912243668,-818.53146404,0.0001,2]
[356119364,1741912243682,-4104.2072107,0.0001,2]
[356119379,1741912246388,-645.88313174,0.0001,2]
[356119380,1741912246446,-127357.0434,0.0001,2]
[356119381,1741912246458,-27657.16378,0.0001,2]
[356119382,1741912246472,-22096.52072,0.0001,2]
[356119383,1741912246502,-17065.40735478,0.0001,2]
[356119384,1741912246559,-1066.29103033,0.0001,2]
[356119387,1741912322252,-300.0,9.999e-05,2]
[356119388,1741912322288,-2827.32245406,0.0001,2]
[356119389,1741912380106,-210000.0,0.0001,2]
[356119390,1741912532306,-670.14,9.999e-05,2]
[356119391,1741912532332,-669329.86,0.0001,2]
[356119392,1741912646410,-154000.0,0.0001,2]
[356119393,1741912733084,-1576.363,9.8e-05,2]
[356119394,1741912733106,-300.0,9.999e-05,2]
[356119395,1741912733134,-89823.637,0.0001,2]
[356119396,1741912919015,-440.42254486,9.91e-05,2]
[356119397,1741912919046,-151.3254705,9.973e-05,2]
[356119398,1741912919072,-501.72082279,9.973e-05,2]
[356119399,1741912919099,-150.0,9.999e-05,2]
[356119400,1741912919122,-168.18880085,9.999e-05,2]
[356119401,1741912919146,-500.0,9.999e-05,2]
[356119402,1741912919171,-625.89410896,9.999e-05,2]
[356119403,1741912919202,-721762.44825204,0.0001,2]
[356119404,1741912983586,-451.54830047,9.999e-05,2]
[356119405,1741912983613,-309671.45169953,0.0001,2]
[356119406,1741913030715,-8627.0,9.973e-05,2]
[356119407,1741913030739,-100383.0,0.0001,2]
[356119408,1741913107938,-683.89,9.999e-05,2]
[356119409,1741913107963,-704457.11,0.0001,2]
[356119410,1741913158148,-711084.0,0.0001,2]
[356119412,1741913223127,-1183.0,9.999e-05,2]
[356119413,1741913223150,-300.0,9.999e-05,2]
[356119414,1741913223178,-166533.0,0.0001,2]
[356119419,1741913365595,-11875.38670189,9.91e-05,2]
[356119420,1741913365626,-150.0,9.999e-05,2]
[356119421,1741913365653,-286.33985143,9.999e-05,2]
[356119422,1741913365680,-467.76734652,9.999e-05,2]
[356119423,1741913365711,-137220.50610016,0.0001,2]
[356119425,1741913401933,-219.39314108,9.999e-05,2]
[356119426,1741913401960,-219.39314108,0.0001,2]
[356119427,1741913401988,-128561.21371784,0.0001,2]
[356119428,1741913431618,-134.96531853,9.999e-05,2]
[356119429,1741913431645,-15.03468147,9.999e-05,2]
[356119430,1741913431655,-1874.69177097,0.0001,2]
[356119431,1741913431825,-574.97125657,0.0001,2]
[356119432,1741913431836,-44432.70127032,0.0001,2]
[356119433,1741913431848,-4518.04882973,0.0001,2]
[356119434,1741913431859,-1486.97959309,0.0001,2]
[356119435,1741913431870,-5008.0021072,0.0001,2]
[356119436,1741913431893,-584.860001,0.0001,2]
[356119437,1741913431905,-363.65199033,0.0001,2]
[356119438,1741913431916,-637.44999998,0.0001,2]
[356119439,1741913431927,-3600.54847844,0.0001,2]
[356119440,1741913431939,-644.4876136,0.0001,2]
[356119441,1741913431961,-22134.67139,0.0001,2]
[356119442,1741913432004,-2175.98318038,0.0001,2]
[356119443,1741913432019,-1591.67605475,0.0001,2]
[356119444,1741913432032,-286.24606077,0.0001,2]
[356119631,1741913437494,-21332.57746487,0.0001,2]
[356119632,1741913437528,-118040.12810563,0.0001,2]
[356119633,1741913437541,-211112.44562349,0.0001,2]
[356119634,1741913437615,-12.35042508,0.0001,2]
[356119635,1741913437629,-47813.39861901,0.0001,2]
[356119636,1741913437650,-4809.29293947,0.0001,2]
[356119637,1741913437661,-876.49937008,0.0001,2]
[356119638,1741913437673,-1231.32874506,0.0001,2]
[356119639,1741913437714,-2016.3159411,0.0001,2]
[356119640,1741913437725,-419.229999,0.0001,2]
[356119641,1741913437736,-22217.14766714,0.0001,2]
[356119642,1741913439661,-859.76791332,0.0001,2]
[356119643,1741913439693,-10.71181215,0.0001,2]
[356119644,1741913439704,-1600.65,0.0001,2]
[356119645,1741913439717,-717.10633169,0.0001,2]
[356119646,1741913439729,-301.92197159,0.0001,2]
[356119647,1741913439743,-688.9090029,0.0001,2]
[356119648,1741913439757,-2976.20822404,0.0001,2]
[356119649,1741913439768,-3583.06796825,0.0001,2]
[356119650,1741913439798,-0.22476039,0.0001,2]
[356119651,1741913439817,-435.38038272,0.0001,2]
[356119652,1741913439954,-372.73435407,0.0001,2]
[356119653,1741913439970,-8963.85027876,0.0001,2]
[356119654,1741913439982,-2034.52399846,0.0001,2]
[356119655,1741913439998,-24820.66392275,0.0001,2]
[356119656,1741913440019,-2793.02318066,0.0001,2]
[356119657,1741913440030,-68564.16774395,0.0001,2]
[356119658,1741913440042,-861.65180622,0.0001,2]
[356119659,1741913440053,-341.90370165,0.0001,2]
[356119660,1741913440063,-5739.92921852,0.0001,2]
[356119678,1741913442795,-8665.65283208,0.0001,2]
[356119680,1741913442807,-4044.1486448,0.0001,2]
[356119683,1741913442818,-547.8259956,0.0001,2]
[356119687,1741913442855,-22777.79725648,0.0001,2]
[356119691,1741913444305,-1741.16837425,0.0001,2]
[356119692,1741913444316,-2429.625,0.0001,2]
[356119693,1741913444327,-1772.16665824,0.0001,2]
[356119694,1741913444350,-21013.52788047,0.0001,2]
[356119696,1741913445589,-2449.59031485,0.0001,2]
[356119697,1741913445601,-1609.41349508,0.0001,2]
[356119698,1741913445633,-0.02614375,0.0001,2]
[356119699,1741913445646,-3281.0519054,0.0001,2]
[356119700,1741913445657,-811.61087622,0.0001,2]